[Event "Titled Tuesday Blitz August 16 Late 2022"]
[White "Leenhouts, Koen"]
[Black "Curtis, John"]
[WhiteFideId "1008439"]
[BlackFideId "3200256"]
[WhiteElo "2409"]
[BlackElo "2203"]
[Result "0-1"]
[Round "01"]
[TimeControl "180+1"]
[Date "2022.08.18"]
[WhiteClock "0:00:00"]
[BlackClock "0:00:00"]

1. e4 {[%clk 0:00:00]}  c5 {[%clk 0:00:00]} 2. Nf3 {[%clk 0:00:00]}  d6 {[%clk 0:00:00]} 3. c3 {[%clk 0:00:00]}  Nf6 {[%clk 0:00:00]} 4. h3 {[%clk 0:00:00]}  e6 {[%clk 0:00:00]} 5. Bd3 {[%clk 0:00:00]}  Be7 {[%clk 0:00:00]} 6. O-O {[%clk 0:00:00]}  Nc6 {[%clk 0:00:00]} 7. Bc2 {[%clk 0:00:00]}  O-O {[%clk 0:00:00]} 8. d4 {[%clk 0:00:00]}  cxd4 {[%clk 0:00:00]} 9. cxd4 {[%clk 0:00:00]}  Nb4 {[%clk 0:00:00]} 10. Bb3 {[%clk 0:00:00]}  Nxe4 {[%clk 0:00:00]} 11. Qe1 {[%clk 0:00:00]}  d5 {[%clk 0:00:00]} 12. Nc3 {[%clk 0:00:00]}  Nd3 {[%clk 0:00:00]} 13. Qe3 {[%clk 0:00:00]}  Nxc1 {[%clk 0:00:00]} 14. Raxc1 {[%clk 0:00:00]}  Nf6 {[%clk 0:00:00]} 15. Ne5 {[%clk 0:00:00]}  Bd7 {[%clk 0:00:00]} 16. Bc2 {[%clk 0:00:00]}  Bc6 {[%clk 0:00:00]} 17. g4 {[%clk 0:00:00]}  Nd7 {[%clk 0:00:00]} 18. Qd3 {[%clk 0:00:00]}  g6 {[%clk 0:00:00]} 19. Nxc6 {[%clk 0:00:00]}  bxc6 {[%clk 0:00:00]} 20. Ne2 {[%clk 0:00:00]}  c5 {[%clk 0:00:00]} 21. dxc5 {[%clk 0:00:00]}  Bxc5 {[%clk 0:00:00]} 22. Kg2 {[%clk 0:00:00]}  Bb6 {[%clk 0:00:00]} 23. Ng3 {[%clk 0:00:00]}  Rc8 {[%clk 0:00:00]} 24. f4 {[%clk 0:00:00]}  Qh4 {[%clk 0:00:00]} 25. f5 {[%clk 0:00:00]}  exf5 {[%clk 0:00:00]} 26. gxf5 {[%clk 0:00:00]}  Nc5 {[%clk 0:00:00]} 27. Qf3 {[%clk 0:00:00]}  Ne4 {[%clk 0:00:00]} 28. Bxe4 {[%clk 0:00:00]}  Rxc1 {[%clk 0:00:00]} 29. Rxc1 {[%clk 0:00:00]}  dxe4 {[%clk 0:00:00]} 30. Nxe4 {[%clk 0:00:00]}  Re8 {[%clk 0:00:00]} 31. fxg6 {[%clk 0:00:00]}  hxg6 {[%clk 0:00:00]} 32. Nf6+ {[%clk 0:00:00]}  Kf8 {[%clk 0:00:00]} 33. Nxe8 {[%clk 0:00:00]}  Qg5+ {[%clk 0:00:00]} 34. Qg4 {[%clk 0:00:00]}  Qxc1 {[%clk 0:00:00]} 35. Nd6 {[%clk 0:00:00]}  Qd2+ {[%clk 0:00:00]} 36. Kf3 {[%clk 0:00:00]}  Qxd6 {[%clk 0:00:00]} 37. Qc8+ {[%clk 0:00:00]}  Kg7 {[%clk 0:00:00]} 38. Qc4 {[%clk 0:00:00]}  Qh2 {[%clk 0:00:00]} 39. Qc3+ {[%clk 0:00:00]}  Kh7 {[%clk 0:00:00]} 40. Ke4 {[%clk 0:00:00]}  Qe2+ {[%clk 0:00:00]} 41. Kd5 {[%clk 0:00:00]}  Qe6# {[%clk 0:00:00]} 0-1


[Site "https://www.chess.com"]

[Event "Titled Tuesday Blitz August 16 Late 2022"]
[White "Leiva, Gianmarco"]
[Black "Pires, Marcos Vinicius Torsani"]
[WhiteFideId "3804399"]
[BlackFideId "2118939"]
[WhiteElo "2323"]
[BlackElo "2273"]
[Result "1-0"]
[Round "01"]
[TimeControl "180+1"]
[Date "2022.08.18"]
[WhiteClock "0:00:00"]
[BlackClock "0:00:00"]

1. e4 {[%clk 0:00:00]}  c5 {[%clk 0:00:00]} 2. Nf3 {[%clk 0:00:00]}  Nc6 {[%clk 0:00:00]} 3. Bb5 {[%clk 0:00:00]}  Nf6 {[%clk 0:00:00]} 4. Nc3 {[%clk 0:00:00]}  g6 {[%clk 0:00:00]} 5. O-O {[%clk 0:00:00]}  Bg7 {[%clk 0:00:00]} 6. Re1 {[%clk 0:00:00]}  O-O {[%clk 0:00:00]} 7. e5 {[%clk 0:00:00]}  Ng4 {[%clk 0:00:00]} 8. Bxc6 {[%clk 0:00:00]}  dxc6 {[%clk 0:00:00]} 9. d3 {[%clk 0:00:00]}  Nh6 {[%clk 0:00:00]} 10. h3 {[%clk 0:00:00]}  Nf5 {[%clk 0:00:00]} 11. Bf4 {[%clk 0:00:00]}  b6 {[%clk 0:00:00]} 12. Qe2 {[%clk 0:00:00]}  Nd4 {[%clk 0:00:00]} 13. Nxd4 {[%clk 0:00:00]}  cxd4 {[%clk 0:00:00]} 14. Ne4 {[%clk 0:00:00]}  c5 {[%clk 0:00:00]} 15. c4 {[%clk 0:00:00]}  dxc3 {[%clk 0:00:00]} 16. bxc3 {[%clk 0:00:00]}  Qd5 {[%clk 0:00:00]} 17. Qf3 {[%clk 0:00:00]}  Bb7 {[%clk 0:00:00]} 18. Rad1 {[%clk 0:00:00]}  Rad8 {[%clk 0:00:00]} 19. c4 {[%clk 0:00:00]}  Qc6 {[%clk 0:00:00]} 20. h4 {[%clk 0:00:00]}  f5 {[%clk 0:00:00]} 21. Ng5 {[%clk 0:00:00]}  Qc8 {[%clk 0:00:00]} 22. Qg3 {[%clk 0:00:00]}  h6 {[%clk 0:00:00]} 23. Nh3 {[%clk 0:00:00]}  Kh7 {[%clk 0:00:00]} 24. Re3 {[%clk 0:00:00]}  Rd4 {[%clk 0:00:00]} 25. Rde1 {[%clk 0:00:00]}  e6 {[%clk 0:00:00]} 26. R1e2 {[%clk 0:00:00]}  Qd7 {[%clk 0:00:00]} 27. f3 {[%clk 0:00:00]}  Rxd3 {[%clk 0:00:00]} 28. Rxd3 {[%clk 0:00:00]}  Qxd3 {[%clk 0:00:00]} 29. Rd2 {[%clk 0:00:00]}  Qxc4 {[%clk 0:00:00]} 30. h5 {[%clk 0:00:00]}  g5 {[%clk 0:00:00]} 31. Nxg5+ {[%clk 0:00:00]}  hxg5 {[%clk 0:00:00]} 32. Qxg5 {[%clk 0:00:00]}  Bd5 {[%clk 0:00:00]} 33. Qg6+ {[%clk 0:00:00]}  Kh8 {[%clk 0:00:00]} 34. h6 {[%clk 0:00:00]}  Rg8 {[%clk 0:00:00]} 35. hxg7+ {[%clk 0:00:00]}  Rxg7 {[%clk 0:00:00]} 36. Qe8+ {[%clk 0:00:00]}  Kh7 {[%clk 0:00:00]} 37. Qh5+ {[%clk 0:00:00]}  Kg8 {[%clk 0:00:00]} 38. Bg5 {[%clk 0:00:00]}  Qc3 {[%clk 0:00:00]} 39. Bh6 {[%clk 0:00:00]}  Qxe5 {[%clk 0:00:00]} 40. Qe8+ {[%clk 0:00:00]}  Kh7 {[%clk 0:00:00]} 41. Bxg7 {[%clk 0:00:00]}  Kxg7 {[%clk 0:00:00]} 42. Qe7+ {[%clk 0:00:00]}  Kg8 {[%clk 0:00:00]} 43. Qg5+ {[%clk 0:00:00]}  Kf7 {[%clk 0:00:00]} 44. Qh4 {[%clk 0:00:00]}  Qe3+ {[%clk 0:00:00]} 45. Rf2 {[%clk 0:00:00]}  Qe1+ {[%clk 0:00:00]} 46. Kh2 {[%clk 0:00:00]}  Qe5+ {[%clk 0:00:00]} 47. Kh3 {[%clk 0:00:00]}  c4 {[%clk 0:00:00]} 48. Qd8 {[%clk 0:00:00]}  c3 {[%clk 0:00:00]} 49. Qd7+ {[%clk 0:00:00]}  Kg6 {[%clk 0:00:00]} 50. Qe8+ {[%clk 0:00:00]}  Kg7 {[%clk 0:00:00]} 51. Qe7+ {[%clk 0:00:00]}  Kg6 {[%clk 0:00:00]} 52. Qe8+ {[%clk 0:00:00]}  Kh7 {[%clk 0:00:00]} 53. Qh5+ {[%clk 0:00:00]}  Kg7 {[%clk 0:00:00]} 54. Qg5+ {[%clk 0:00:00]}  Kf7 {[%clk 0:00:00]} 55. Qh5+ {[%clk 0:00:00]}  Ke7 {[%clk 0:00:00]} 56. Qh7+ {[%clk 0:00:00]}  Kd6 {[%clk 0:00:00]} 57. Qxa7 {[%clk 0:00:00]}  Qh8+ {[%clk 0:00:00]} 58. Kg3 {[%clk 0:00:00]}  Qe5+ {[%clk 0:00:00]} 59. Kh3 {[%clk 0:00:00]}  Qh8+ {[%clk 0:00:00]} 60. Kg3 {[%clk 0:00:00]}  f4+ {[%clk 0:00:00]} 61. Kxf4 {[%clk 0:00:00]}  Qe5+ {[%clk 0:00:00]} 62. Kg4 {[%clk 0:00:00]}  Qf5+ {[%clk 0:00:00]} 63. Kg3 {[%clk 0:00:00]}  Qg5+ {[%clk 0:00:00]} 64. Kh2 {[%clk 0:00:00]}  Qf4+ {[%clk 0:00:00]} 65. g3 {[%clk 0:00:00]}  Qh6+ {[%clk 0:00:00]} 66. Kg2 {[%clk 0:00:00]}  Qe3 {[%clk 0:00:00]} 67. Qa3+ {[%clk 0:00:00]}  Kd7 {[%clk 0:00:00]} 68. Qb4 {[%clk 0:00:00]}  Qc5 {[%clk 0:00:00]} 69. Qxc5 {[%clk 0:00:00]}  bxc5 {[%clk 0:00:00]} 70. Rc2 {[%clk 0:00:00]}  Kd6 {[%clk 0:00:00]} 71. a3 {[%clk 0:00:00]}  Ke5 {[%clk 0:00:00]} 72. Rxc3 {[%clk 0:00:00]}  Kd4 {[%clk 0:00:00]} 73. Rc1 {[%clk 0:00:00]}  c4 {[%clk 0:00:00]} 74. Kf2 {[%clk 0:00:00]}  Kd3 {[%clk 0:00:00]} 75. Rd1+ {[%clk 0:00:00]}  Kc2 {[%clk 0:00:00]} 76. Re1 {[%clk 0:00:00]}  c3 {[%clk 0:00:00]} 77. g4 {[%clk 0:00:00]}  Kd2 {[%clk 0:00:00]} 78. g5 {[%clk 0:00:00]}  Bc4 {[%clk 0:00:00]} 79. g6 {[%clk 0:00:00]}  Bd3 {[%clk 0:00:00]} 80. g7 {[%clk 0:00:00]}  Bh7 {[%clk 0:00:00]} 81. a4 {[%clk 0:00:00]}  c2 {[%clk 0:00:00]} 82. a5 {[%clk 0:00:00]} 1-0


[Site "https://www.chess.com"]

[Event "Titled Tuesday Blitz August 16 Late 2022"]
[White "Levine, Joseph"]
[Black "Burke, Paul"]
[WhiteFideId "30940346"]
[BlackFideId "2605767"]
[WhiteElo "1810"]
[BlackElo "1918"]
[Result "1-0"]
[Round "01"]
[TimeControl "180+1"]
[Date "2022.08.18"]
[WhiteClock "0:00:00"]
[BlackClock "0:00:00"]

1. e4 {[%clk 0:00:00]}  e5 {[%clk 0:00:00]} 2. Nf3 {[%clk 0:00:00]}  Nc6 {[%clk 0:00:00]} 3. Bc4 {[%clk 0:00:00]}  Be7 {[%clk 0:00:00]} 4. c3 {[%clk 0:00:00]}  Nf6 {[%clk 0:00:00]} 5. d3 {[%clk 0:00:00]}  O-O {[%clk 0:00:00]} 6. O-O {[%clk 0:00:00]}  d6 {[%clk 0:00:00]} 7. Bb3 {[%clk 0:00:00]}  Bg4 {[%clk 0:00:00]} 8. Nbd2 {[%clk 0:00:00]}  Qd7 {[%clk 0:00:00]} 9. Nc4 {[%clk 0:00:00]}  Rad8 {[%clk 0:00:00]} 10. Ne3 {[%clk 0:00:00]}  Bh5 {[%clk 0:00:00]} 11. h3 {[%clk 0:00:00]}  Rfe8 {[%clk 0:00:00]} 12. Nf5 {[%clk 0:00:00]}  Bf8 {[%clk 0:00:00]} 13. Bg5 {[%clk 0:00:00]}  Bg6 {[%clk 0:00:00]} 14. N3h4 {[%clk 0:00:00]}  Kh8 {[%clk 0:00:00]} 15. Nxg6+ {[%clk 0:00:00]}  fxg6 {[%clk 0:00:00]} 16. Nh6 {[%clk 0:00:00]}  gxh6 {[%clk 0:00:00]} 17. Bxf6+ {[%clk 0:00:00]}  Bg7 {[%clk 0:00:00]} 18. Bxd8 {[%clk 0:00:00]}  Qxd8 {[%clk 0:00:00]} 19. f4 {[%clk 0:00:00]}  Qh4 {[%clk 0:00:00]} 20. Qg4 {[%clk 0:00:00]}  Qe7 {[%clk 0:00:00]} 21. f5 {[%clk 0:00:00]}  g5 {[%clk 0:00:00]} 22. f6 {[%clk 0:00:00]}  Bxf6 {[%clk 0:00:00]} 23. Rf3 {[%clk 0:00:00]}  Bg7 {[%clk 0:00:00]} 24. Rf7 {[%clk 0:00:00]}  Qd8 {[%clk 0:00:00]} 25. Raf1 {[%clk 0:00:00]}  Rf8 {[%clk 0:00:00]} 26. Rxf8+ {[%clk 0:00:00]}  Bxf8 {[%clk 0:00:00]} 27. Qe6 {[%clk 0:00:00]}  Bg7 {[%clk 0:00:00]} 28. Rf7 {[%clk 0:00:00]}  g4 {[%clk 0:00:00]} 29. Qxg4 {[%clk 0:00:00]}  Qg5 {[%clk 0:00:00]} 30. Qxg5 {[%clk 0:00:00]}  hxg5 {[%clk 0:00:00]} 31. Rxc7 {[%clk 0:00:00]} 1-0


[Site "https://www.chess.com"]

[Event "Titled Tuesday Blitz August 16 Late 2022"]
[White "Lorenzo De La Riva, Lazaro"]
[Black "Salem, A.R. Saleh"]
[WhiteFideId "2268809"]
[BlackFideId "9301348"]
[WhiteElo "2325"]
[BlackElo "2674"]
[Result "0-1"]
[Round "01"]
[TimeControl "180+1"]
[Date "2022.08.16"]
[WhiteClock "0:00:10"]
[BlackClock "0:00:10"]

1. e4 {[%clk 0:02:59]}  c5 {[%clk 0:03:00]} 2. Nf3 {[%clk 0:02:58]}  d6 {[%clk 0:03:00]} 3. d4 {[%clk 0:02:58]}  cxd4 {[%clk 0:03:01]} 4. Nxd4 {[%clk 0:02:58]}  Nf6 {[%clk 0:02:59]} 5. Nc3 {[%clk 0:02:58]}  a6 {[%clk 0:02:58]} 6. a3 {[%clk 0:02:53]}  Nc6 {[%clk 0:02:56]} 7. Bg5 {[%clk 0:02:24]}  e6 {[%clk 0:02:55]} 8. Qd2 {[%clk 0:02:23]}  Be7 {[%clk 0:02:55]} 9. O-O-O {[%clk 0:02:19]}  Bd7 {[%clk 0:02:56]} 10. f3 {[%clk 0:02:02]}  b5 {[%clk 0:02:54]} 11. Nxc6 {[%clk 0:02:00]}  Bxc6 {[%clk 0:02:55]} 12. h4 {[%clk 0:01:56]}  h6 {[%clk 0:02:53]} 13. Be3 {[%clk 0:01:56]}  h5 {[%clk 0:02:52]} 14. Ne2 {[%clk 0:01:50]}  Qc7 {[%clk 0:02:47]} 15. Nd4 {[%clk 0:01:50]}  Bb7 {[%clk 0:02:47]} 16. Kb1 {[%clk 0:01:49]}  Rc8 {[%clk 0:02:39]} 17. Bd3 {[%clk 0:01:46]}  Nd7 {[%clk 0:02:32]} 18. Bg5 {[%clk 0:01:41]}  Ne5 {[%clk 0:02:31]} 19. Bxe7 {[%clk 0:01:40]}  Qxe7 {[%clk 0:02:31]} 20. f4 {[%clk 0:01:35]}  Nc4 {[%clk 0:02:28]} 21. Qe2 {[%clk 0:01:31]}  Qf6 {[%clk 0:02:23]} 22. Qf2 {[%clk 0:01:18]}  O-O {[%clk 0:02:21]} 23. g4 {[%clk 0:01:14]}  hxg4 {[%clk 0:02:20]} 24. Rhg1 {[%clk 0:01:15]}  d5 {[%clk 0:01:25]} 25. Bxc4 {[%clk 0:01:06]}  Rxc4 {[%clk 0:01:00]} 26. e5 {[%clk 0:00:54]}  Qg6 {[%clk 0:01:00]} 27. Qe2 {[%clk 0:00:51]}  g3 {[%clk 0:00:51]} 28. Rd3 {[%clk 0:00:35]}  Qe4 {[%clk 0:00:51]} 29. Qd2 {[%clk 0:00:32]}  Rfc8 {[%clk 0:00:43]} 30. Rgxg3 {[%clk 0:00:30]}  Kf8 {[%clk 0:00:42]} 31. h5 {[%clk 0:00:29]}  b4 {[%clk 0:00:36]} 32. axb4 {[%clk 0:00:28]}  a5 {[%clk 0:00:37]} 33. b5 {[%clk 0:00:27]}  a4 {[%clk 0:00:28]} 34. Ka2 {[%clk 0:00:24]}  R8c7 {[%clk 0:00:20]} 35. Rge3 {[%clk 0:00:22]}  Qh1 {[%clk 0:00:18]} 36. f5 {[%clk 0:00:20]}  exf5 {[%clk 0:00:16]} 37. e6 {[%clk 0:00:20]}  f4 {[%clk 0:00:11]} 38. Re1 {[%clk 0:00:16]}  Qxh5 {[%clk 0:00:12]} 39. exf7 {[%clk 0:00:14]}  Rxf7 {[%clk 0:00:11]} 40. Ne6+ {[%clk 0:00:15]}  Kg8 {[%clk 0:00:11]} 41. Qg2 {[%clk 0:00:13]}  f3 {[%clk 0:00:10]} 42. Qg3 {[%clk 0:00:13]}  Qg4 {[%clk 0:00:07]} 43. Qb8+ {[%clk 0:00:12]}  Rc8 {[%clk 0:00:08]} 44. Qd6 {[%clk 0:00:12]}  Qc4+ {[%clk 0:00:08]} 45. Ka1 {[%clk 0:00:12]}  Qxc2 {[%clk 0:00:09]} 46. Red1 {[%clk 0:00:11]}  f2 {[%clk 0:00:09]} 47. Ng5 {[%clk 0:00:10]}  Qxd3 {[%clk 0:00:09]} 48. Rxd3 {[%clk 0:00:08]}  f1=Q+ {[%clk 0:00:10]} 49. Ka2 {[%clk 0:00:09]}  Qxd3 {[%clk 0:00:11]} 50. Qe6 {[%clk 0:00:09]}  Qc4+ {[%clk 0:00:10]} 51. Ka1 {[%clk 0:00:09]}  Qf1+ {[%clk 0:00:10]} 52. Ka2 {[%clk 0:00:10]}  Qf5 {[%clk 0:00:10]} 0-1


[Site "https://www.chess.com"]

[Event "Titled Tuesday Blitz August 16 Late 2022"]
[White "Martinez Reyes, Pedro Ramon"]
[Black "Leitao, Rafael"]
[WhiteFideId "3901807"]
[BlackFideId "2101246"]
[WhiteElo "2327"]
[BlackElo "2609"]
[Result "1-0"]
[Round "01"]
[TimeControl "180+1"]
[Date "2022.08.18"]
[WhiteClock "0:00:00"]
[BlackClock "0:00:00"]

1. e4 {[%clk 0:00:00]}  c5 {[%clk 0:00:00]} 2. Nf3 {[%clk 0:00:00]}  d6 {[%clk 0:00:00]} 3. d4 {[%clk 0:00:00]}  cxd4 {[%clk 0:00:00]} 4. Nxd4 {[%clk 0:00:00]}  Nf6 {[%clk 0:00:00]} 5. Nc3 {[%clk 0:00:00]}  Nc6 {[%clk 0:00:00]} 6. Nxc6 {[%clk 0:00:00]}  bxc6 {[%clk 0:00:00]} 7. Bc4 {[%clk 0:00:00]}  e6 {[%clk 0:00:00]} 8. O-O {[%clk 0:00:00]}  Be7 {[%clk 0:00:00]} 9. Bb3 {[%clk 0:00:00]}  O-O {[%clk 0:00:00]} 10. Re1 {[%clk 0:00:00]}  d5 {[%clk 0:00:00]} 11. Bf4 {[%clk 0:00:00]}  Bb7 {[%clk 0:00:00]} 12. e5 {[%clk 0:00:00]}  Nd7 {[%clk 0:00:00]} 13. Qg4 {[%clk 0:00:00]}  Re8 {[%clk 0:00:00]} 14. Rad1 {[%clk 0:00:00]}  Nc5 {[%clk 0:00:00]} 15. Re3 {[%clk 0:00:00]}  f5 {[%clk 0:00:00]} 16. exf6 {[%clk 0:00:00]}  Bxf6 {[%clk 0:00:00]} 17. Be5 {[%clk 0:00:00]}  Bxe5 {[%clk 0:00:00]} 18. Rxe5 {[%clk 0:00:00]}  Qf6 {[%clk 0:00:00]} 19. Rde1 {[%clk 0:00:00]}  Rf8 {[%clk 0:00:00]} 20. f3 {[%clk 0:00:00]}  Rae8 {[%clk 0:00:00]} 21. Qd4 {[%clk 0:00:00]}  Nd7 {[%clk 0:00:00]} 22. Qxa7 {[%clk 0:00:00]}  Nxe5 {[%clk 0:00:00]} 23. Qxb7 {[%clk 0:00:00]}  Qg5 {[%clk 0:00:00]} 24. Kh1 {[%clk 0:00:00]}  c5 {[%clk 0:00:00]} 25. Qc7 {[%clk 0:00:00]}  Ng6 {[%clk 0:00:00]} 26. Qxc5 {[%clk 0:00:00]}  Nf4 {[%clk 0:00:00]} 27. Qf2 {[%clk 0:00:00]}  Rf6 {[%clk 0:00:00]} 28. Qg3 {[%clk 0:00:00]}  Qf5 {[%clk 0:00:00]} 29. Nxd5 {[%clk 0:00:00]}  Nxd5 {[%clk 0:00:00]} 30. Re5 {[%clk 0:00:00]}  Qf4 {[%clk 0:00:00]} 31. Bxd5 {[%clk 0:00:00]}  Qc1+ {[%clk 0:00:00]} 32. Re1 {[%clk 0:00:00]}  Qxc2 {[%clk 0:00:00]} 33. Bb3 {[%clk 0:00:00]}  Qxb2 {[%clk 0:00:00]} 34. Qh3 {[%clk 0:00:00]}  Qc3 {[%clk 0:00:00]} 35. Rf1 {[%clk 0:00:00]}  Qc7 {[%clk 0:00:00]} 36. Qg4 {[%clk 0:00:00]}  Rg6 {[%clk 0:00:00]} 37. Qe4 {[%clk 0:00:00]}  Rh6 {[%clk 0:00:00]} 38. h3 {[%clk 0:00:00]}  Rf6 {[%clk 0:00:00]} 39. Re1 {[%clk 0:00:00]}  h6 {[%clk 0:00:00]} 40. Qe5 {[%clk 0:00:00]}  Qe7 {[%clk 0:00:00]} 41. Qe4 {[%clk 0:00:00]}  Kh8 {[%clk 0:00:00]} 42. Bc4 {[%clk 0:00:00]}  e5 {[%clk 0:00:00]} 43. Bd3 {[%clk 0:00:00]}  g6 {[%clk 0:00:00]} 44. Qe3 {[%clk 0:00:00]}  Kg7 {[%clk 0:00:00]} 45. Be4 {[%clk 0:00:00]}  Ra6 {[%clk 0:00:00]} 46. Rb1 {[%clk 0:00:00]}  Rd8 {[%clk 0:00:00]} 47. Rb7 {[%clk 0:00:00]}  Rd7 {[%clk 0:00:00]} 48. Rb1 {[%clk 0:00:00]}  Rxa2 {[%clk 0:00:00]} 49. Qb6 {[%clk 0:00:00]}  Rd6 {[%clk 0:00:00]} 50. Qb8 {[%clk 0:00:00]}  Rad2 {[%clk 0:00:00]} 51. Qc8 {[%clk 0:00:00]}  Rd8 {[%clk 0:00:00]} 52. Qc6 {[%clk 0:00:00]}  Rd1+ {[%clk 0:00:00]} 53. Rxd1 {[%clk 0:00:00]}  Rxd1+ {[%clk 0:00:00]} 54. Kh2 {[%clk 0:00:00]}  Rd7 {[%clk 0:00:00]} 55. Qxg6+ {[%clk 0:00:00]}  Kf8 {[%clk 0:00:00]} 56. Qf5+ {[%clk 0:00:00]}  Kg7 {[%clk 0:00:00]} 57. Qg6+ {[%clk 0:00:00]}  Kf8 {[%clk 0:00:00]} 58. Qxh6+ {[%clk 0:00:00]}  Qg7 {[%clk 0:00:00]} 59. Qe6 {[%clk 0:00:00]}  Qf7 {[%clk 0:00:00]} 60. Qh6+ {[%clk 0:00:00]}  Qg7 {[%clk 0:00:00]} 61. Qe6 {[%clk 0:00:00]}  Qf7 {[%clk 0:00:00]} 62. Qg4 {[%clk 0:00:00]}  Qg7 {[%clk 0:00:00]} 63. h4 {[%clk 0:00:00]}  Qxg4 {[%clk 0:00:00]} 64. fxg4 {[%clk 0:00:00]}  Rd4 {[%clk 0:00:00]} 65. Bf5 {[%clk 0:00:00]}  Rf4 {[%clk 0:00:00]} 66. g3 {[%clk 0:00:00]}  Rf2+ {[%clk 0:00:00]} 67. Kg1 {[%clk 0:00:00]}  Rb2 {[%clk 0:00:00]} 68. h5 {[%clk 0:00:00]}  Kg7 {[%clk 0:00:00]} 69. g5 {[%clk 0:00:00]}  Re2 {[%clk 0:00:00]} 70. h6+ {[%clk 0:00:00]}  Kf7 {[%clk 0:00:00]} 71. g6+ {[%clk 0:00:00]}  Kf6 {[%clk 0:00:00]} 72. g7 {[%clk 0:00:00]}  Kf7 {[%clk 0:00:00]} 73. Be6+ {[%clk 0:00:00]}  Kxe6 {[%clk 0:00:00]} 74. g8=Q+ {[%clk 0:00:00]}  Kf5 {[%clk 0:00:00]} 75. h7 {[%clk 0:00:00]}  Ke4 {[%clk 0:00:00]} 76. Qg6+ {[%clk 0:00:00]}  Kf3 {[%clk 0:00:00]} 77. Qf5+ {[%clk 0:00:00]}  Kxg3 {[%clk 0:00:00]} 78. Qg5+ {[%clk 0:00:00]}  Kf3 {[%clk 0:00:00]} 79. Qh5+ {[%clk 0:00:00]} 1-0


[Site "https://www.chess.com"]

[Event "Titled Tuesday Blitz August 16 Late 2022"]
[White "Mcconnell, Sullivan"]
[Black "Gallana, Marco"]
[WhiteFideId "30934885"]
[BlackFideId "824542"]
[WhiteElo "1985"]
[BlackElo "2290"]
[Result "1-0"]
[Round "01"]
[TimeControl "180+1"]
[Date "2022.08.18"]
[WhiteClock "0:00:00"]
[BlackClock "0:00:00"]

1. e4 {[%clk 0:00:00]}  c5 {[%clk 0:00:00]} 2. Nc3 {[%clk 0:00:00]}  Nc6 {[%clk 0:00:00]} 3. Bb5 {[%clk 0:00:00]}  Nd4 {[%clk 0:00:00]} 4. Bc4 {[%clk 0:00:00]}  Nf6 {[%clk 0:00:00]} 5. Nge2 {[%clk 0:00:00]}  e6 {[%clk 0:00:00]} 6. O-O {[%clk 0:00:00]}  Nc6 {[%clk 0:00:00]} 7. d4 {[%clk 0:00:00]}  cxd4 {[%clk 0:00:00]} 8. Nxd4 {[%clk 0:00:00]}  a6 {[%clk 0:00:00]} 9. Nxc6 {[%clk 0:00:00]}  bxc6 {[%clk 0:00:00]} 10. e5 {[%clk 0:00:00]}  Nd5 {[%clk 0:00:00]} 11. Ne4 {[%clk 0:00:00]}  Qc7 {[%clk 0:00:00]} 12. f4 {[%clk 0:00:00]}  Be7 {[%clk 0:00:00]} 13. Kh1 {[%clk 0:00:00]}  O-O {[%clk 0:00:00]} 14. Bd3 {[%clk 0:00:00]}  f5 {[%clk 0:00:00]} 15. Nf2 {[%clk 0:00:00]}  Qb6 {[%clk 0:00:00]} 16. Qe2 {[%clk 0:00:00]}  a5 {[%clk 0:00:00]} 17. a3 {[%clk 0:00:00]}  Bc5 {[%clk 0:00:00]} 18. Nd1 {[%clk 0:00:00]}  Ba6 {[%clk 0:00:00]} 19. c4 {[%clk 0:00:00]}  Ne7 {[%clk 0:00:00]} 20. Be3 {[%clk 0:00:00]}  Rab8 {[%clk 0:00:00]} 21. Bxc5 {[%clk 0:00:00]}  Qxc5 {[%clk 0:00:00]} 22. Qf2 {[%clk 0:00:00]}  Qxf2 {[%clk 0:00:00]} 23. Rxf2 {[%clk 0:00:00]}  c5 {[%clk 0:00:00]} 24. Nc3 {[%clk 0:00:00]}  Nc6 {[%clk 0:00:00]} 25. Na4 {[%clk 0:00:00]}  Nd4 {[%clk 0:00:00]} 26. Nxc5 {[%clk 0:00:00]}  Bb7 {[%clk 0:00:00]} 27. Nxd7 {[%clk 0:00:00]}  Rfd8 {[%clk 0:00:00]} 28. Nxb8 {[%clk 0:00:00]}  Rxb8 {[%clk 0:00:00]} 29. Rd1 {[%clk 0:00:00]}  Nb3 {[%clk 0:00:00]} 30. Bc2 {[%clk 0:00:00]}  Nc5 {[%clk 0:00:00]} 31. b4 {[%clk 0:00:00]}  axb4 {[%clk 0:00:00]} 32. axb4 {[%clk 0:00:00]}  Ne4 {[%clk 0:00:00]} 33. Bxe4 {[%clk 0:00:00]}  Bxe4 {[%clk 0:00:00]} 34. Rb2 {[%clk 0:00:00]}  h5 {[%clk 0:00:00]} 35. h3 {[%clk 0:00:00]}  h4 {[%clk 0:00:00]} 36. b5 {[%clk 0:00:00]}  Ra8 {[%clk 0:00:00]} 37. Rc1 {[%clk 0:00:00]}  Ra3 {[%clk 0:00:00]} 38. Kh2 {[%clk 0:00:00]} 1-0


[Site "https://www.chess.com"]